bitfinex/quotes_ETHUSD_20250625
["timestamp","ask_amount","ask_price","bid_price","bid_amount"]
[1750878677603,0.2056,2427.5,2427.4,4.11963417]
[1750878677779,2.6651,2427.8,2427.3,4.96432531]
[1750878677984,2.6651,2427.8,2427.6,4.11920305]
[1750878678490,1.862,2427.8,2427.5,4.32500764]
[1750878678697,1.862,2427.8,2427.6,4.11920231]
[1750878679103,1.862,2427.8,2427.5,4.32497585]
[1750878679910,1.862,2427.8,2427.5,0.2056]
[1750878682408,4.11898906,2427.8,2427.5,0.2056]
[1750878682634,1.842,2427.8,2427.5,4.32503995]
[1750878683308,1.842,2427.8,2427.7,4.11912509]
[1750878683506,1.842,2427.8,2427.6,4.11923526]
[1750878683906,1.842,2427.8,2427.5,5.24775592]
[1750878684077,5.96103385,2427.8,2427.5,0.2056]
[1750878684409,4.11974597,2427.4,2427.1,0.2056]
[1750878684607,0.9918,2427.3,2427.1,4.12007059]
[1750878684912,7.8748,2427.5,2427.1,0.2056]
[1750878685285,7.8748,2427.5,2427.2,4.11995801]
[1750878685900,7.8748,2427.5,2427.1,0.2056]
[1750878686074,4.3254817,2427.3,2426.8,10.2056]
[1750878686405,4.3254817,2427.3,2427.1,4.12005678]
[1750878686406,1.842,2427.3,2427.1,4.12005678]
[1750878686778,1.842,2427.3,2427.1,4.12014338]
[1750878687084,1.842,2427.3,2427.2,4.11997363]
[1750878687281,0.7613,2427.8,2427.2,0.7848]
[1750878687583,1.842,2427.8,2427.7,4.11912509]
[1750878687784,1.842,2427.8,2427.6,0.2056]
[1750878687986,5.96097089,2427.8,2427.3,4.11978245]
[1750878688290,1.842,2427.8,2427.4,4.32520393]
[1750878689111,1.842,2427.8,2427.4,0.2056]
[1750878689608,1.842,2427.8,2427.4,4.32522241]
[1750878690713,1.842,2427.8,2427.4,1.12857976]
[1750878690897,1.792,2427.8,2427.4,5.2481597]
[1750878691304,1.792,2427.8,2427.5,4.11945533]
[1750878693736,1.792,2427.8,2427.4,5.24819354]
[1750878694128,1.792,2427.8,2427.5,4.11942769]
[1750878694307,1.792,2427.8,2427.5,5.05618045]
[1750878694502,1.792,2427.8,2427.6,0.2056]
[1750878695337,1.792,2427.8,2427.6,4.32488961]
[1750878695655,0.2056,2428.0,2427.7,4.11907889]
[1750878696117,0.2056,2428.0,2427.8,4.11887451]
[1750878696321,0.2056,2428.0,2427.7,4.11897896]
[1750878696639,2.6033,2428.1,2427.9,4.11877]
[1750878696640,1.842,2428.1,2427.9,4.11877]
[1750878696838,1.842,2428.1,2428.0,4.11861614]
[1750878697346,1.842,2428.1,2427.9,4.11870522]
[1750878698040,1.842,2428.1,2427.9,4.1187806]
[1750878698521,1.842,2428.1,2428.0,4.11861614]
[1750878699235,1.842,2428.1,2428.0,4.32421614]
[1750878699740,1.842,2428.1,2428.0,0.2056]
[1750878700539,1.842,2428.1,2427.7,0.43248349]
[1750878700720,1.842,2428.1,2427.8,4.32454782]
[1750878701318,1.842,2428.1,2427.9,4.11875708]
[1750878701816,1.842,2428.1,2427.8,4.32454782]
[1750878701817,1.842,2428.1,2427.8,4.32446493]
[1750878702052,1.842,2428.1,2427.8,5.2946732]
[1750878702246,1.842,2428.1,2427.9,4.11864347]
[1750878702540,1.842,2428.1,2427.9,4.11870486]
[1750878703646,1.842,2428.1,2427.8,5.29458396]
[1750878703813,1.842,2428.1,2427.9,4.11877749]
[1750878704015,1.842,2428.1,2427.8,5.29458188]
[1750878704248,1.842,2428.1,2427.8,0.2056]
[1750878704463,2.613,2428.1,2427.3,4.90263749]
[1750878704746,22.05733211,2428.8,2426.6,10.0]
[1750878704747,0.2056,2427.7,2426.6,10.0]
[1750878704950,0.771,2426.6,2425.4,0.21497986]
[1750878705251,4.94520796,2427.2,2424.0,1.842]
[1750878705252,0.771,2424.7,2424.0,1.842]
[1750878705410,0.771,2424.7,2423.8,0.20256883]
[1750878705739,0.771,2425.1,2424.0,4.12541254]
[1750878705911,0.771,2425.1,2424.9,0.21514873]
[1750878706228,0.7878,2425.6,2425.0,1.925]
[1750878706414,0.7878,2425.6,2425.1,1.925]
[1750878706614,0.7878,2425.6,2424.6,9.883]
[1750878706615,0.7878,2425.6,2425.2,1.925]
[1750878706809,0.7878,2425.6,2425.3,1.925]
[1750878707142,0.7878,2425.6,2425.4,1.925]
[1750878707143,4.12286776,2425.5,2425.4,1.925]
[1750878707347,4.12349145,2425.2,2424.6,9.883]
[1750878707645,4.12334994,2425.3,2424.7,1.925]
[1750878708022,0.90333601,2425.5,2424.7,1.925]
[1750878708216,4.12305817,2425.4,2424.7,1.925]
[1750878708629,0.7878,2425.6,2424.7,1.925]
[1750878708630,4.1232434,2425.3,2424.8,7.066]
[1750878708942,0.7878,2425.6,2424.7,1.925]
[1750878709146,4.12323891,2425.3,2424.8,7.066]
[1750878709347,4.12326278,2425.3,2424.8,7.066]
[1750878709650,4.91052352,2425.6,2424.9,7.9641]
[1750878710518,4.12303593,2425.4,2424.9,7.9641]
[1750878710718,4.1233742,2425.2,2424.9,0.8991]
[1750878710944,4.12286126,2425.5,2425.0,7.058]
[1750878711247,4.12308491,2425.4,2425.0,7.058]
[1750878711435,4.12334488,2425.3,2425.0,7.058]
[1750878711631,4.12309883,2425.4,2425.0,7.058]
[1750878712032,4.12291865,2425.5,2425.0,7.058]
[1750878712426,4.1232208,2425.3,2424.7,11.925]
[1750878712627,4.12286126,2425.5,2425.1,7.054]
[1750878712833,4.12286126,2425.5,2425.2,1.925]
[1750878713028,4.12320125,2425.3,2425.2,1.925]
[1750878714254,4.12320125,2425.3,2425.2,8.977]
[1750878714425,4.12313296,2425.4,2425.2,8.977]
[1750878715158,4.12320125,2425.3,2425.2,8.977]
[1750878715552,4.12320125,2425.3,2425.2,1.925]
[1750878715960,4.12320125,2425.3,2425.2,8.969]
[1750878716162,4.12320125,2425.3,2425.2,8.968]
[1750878718373,4.12320125,2425.3,2425.2,8.967]
[1750878718540,4.94782699,2425.3,2425.2,1.925]
[1750878718868,4.94782699,2425.3,2425.2,8.959]
[1750878719159,4.32873818,2425.4,2425.2,8.959]
[1750878719856,4.12286875,2425.5,2425.2,8.959]
[1750878719857,4.12294776,2425.5,2425.2,8.959]
[1750878720059,4.32854776,2425.5,2425.2,8.959]
[1750878720246,0.2056,2425.5,2425.2,8.959]
[1750878720425,11.92199427,2426.1,2425.2,8.959]
[1750878720426,7.8,2426.1,2425.3,0.7779]
[1750878720631,0.2056,2426.1,2425.6,4.32820539]
[1750878720845,0.2056,2426.1,2425.7,1.926]
[1750878721043,0.2056,2426.1,2425.8,16.922]
[1750878721563,0.2056,2426.1,2425.8,21.04432605]
[1750878722331,0.2056,2426.1,2425.8,16.922]
[1750878722538,0.2056,2426.1,2425.8,21.04434899]
[1750878722956,0.2056,2426.1,2425.8,16.922]
[1750878723330,0.2056,2426.1,2425.8,16.92]
[1750878724228,0.2056,2426.1,2425.8,9.89]
[1750878724434,4.32746365,2426.1,2425.8,16.914]
[1750878724834,0.2056,2426.1,2425.8,16.914]
[1750878725966,4.32745358,2426.1,2425.8,16.914]
[1750878726138,0.2056,2426.1,2425.8,16.914]
[1750878726638,4.32745715,2426.1,2425.8,16.914]
[1750878726837,4.32745715,2426.1,2425.8,9.89]
[1750878727040,0.2056,2426.1,2425.8,16.904]
[1750878727436,0.2056,2426.1,2425.8,16.9]
[1750878727637,0.2056,2426.1,2425.8,9.89]
[1750878727854,0.2056,2426.1,2425.8,16.9]
[1750878728580,0.2056,2426.1,2425.8,21.0223486]
[1750878729264,0.2056,2426.1,2425.8,16.9]
[1750878729486,0.2056,2426.1,2425.8,9.89]
[1750878729964,4.32745305,2426.1,2425.8,9.89]
[1750878730148,5.1723529,2426.1,2425.8,9.89]
[1750878730556,1.05049985,2426.1,2425.8,9.89]
[1750878731271,5.17235621,2426.1,2425.8,9.89]
[1750878731976,4.12218145,2425.9,2425.8,9.89]
[1750878732174,4.90228145,2425.9,2425.7,1.926]
[1750878732360,5.02479422,2425.8,2425.7,1.926]
[1750878733071,4.32823982,2425.7,2425.0,4.32927466]
[1750878733277,5.02479422,2425.8,2425.1,6.04945815]
[1750878733278,0.2056,2425.5,2425.1,6.04945815]
[1750878733680,4.32846431,2425.5,2425.1,6.04945815]
[1750878733877,4.32846431,2425.5,2425.1,1.926]
[1750878734548,0.2056,2425.5,2425.1,1.926]
[1750878734747,0.2056,2425.5,2425.2,4.12327372]
[1750878735247,0.2056,2425.5,2425.1,6.04945373]
[1750878735992,0.90244284,2425.8,2425.4,4.12303125]
[1750878736198,0.2056,2425.7,2425.4,4.12303125]
[1750878736496,0.2056,2425.7,2425.3,4.12311232]
[1750878737162,0.2056,2425.7,2425.4,4.1230169]
[1750878737350,0.2056,2425.7,2425.3,4.12310593]
[1750878737581,0.2056,2425.7,2425.4,4.12295387]
[1750878737763,0.2056,2426.0,2425.5,0.2056]
[1750878738093,0.2056,2426.0,2425.7,4.12250144]
[1750878738291,0.2056,2426.0,2425.9,4.12218145]
[1750878738503,0.7612,2427.1,2426.3,4.12149971]
[1750878738680,0.2056,2426.6,2426.4,1.897]
[1750878738850,0.2056,2426.6,2426.5,4.12116216]
[1750878739049,0.2056,2426.6,2426.4,6.01832665]
[1750878739050,0.2056,2426.9,2426.4,2.1026]
[1750878739255,0.2056,2426.9,2426.6,4.12088575]
[1750878739468,0.2056,2426.9,2426.5,4.12109731]
[1750878739944,0.2056,2426.9,2426.4,2.1026]
[1750878740280,0.2056,2426.9,2426.4,6.22390989]
[1750878740477,0.2056,2426.9,2426.5,4.12106512]
[1750878741084,0.2056,2426.9,2426.6,4.12096911]
[1750878741450,0.2056,2426.9,2426.5,4.12114758]
[1750878741649,0.2056,2426.9,2426.6,4.12090857]
[1750878742250,0.2056,2426.9,2426.7,4.12081544]
[1750878743094,0.2056,2426.9,2426.6,4.12088452]
[1750878743293,0.2056,2426.9,2426.7,4.12082208]
[1750878743991,0.2056,2426.9,2426.5,4.12108178]
[1750878744192,0.2056,2426.9,2426.4,6.22385945]
[1750878744351,4.32611499,2426.9,2426.4,6.22385945]
[1750878744568,0.2056,2426.9,2426.6,4.12096264]
[1750878744797,0.2056,2426.9,2426.5,4.12107499]
[1750878745454,4.32610617,2426.9,2426.4,6.22385353]
[1750878746060,0.2056,2426.9,2426.5,4.12113726]
[1750878746272,4.3261157,2426.9,2426.4,6.2238589]
[1750878746782,4.3261157,2426.9,2426.5,4.12115522]
[1750878747085,4.3261157,2426.9,2426.4,6.22386044]
[1750878747291,0.2056,2426.9,2426.5,4.1210677]
[1750878748855,0.2056,2426.9,2426.4,6.22392663]
[1750878748856,4.32616521,2426.9,2426.4,6.22381729]
[1750878749056,0.2056,2426.9,2426.5,4.12113955]
[1750878749686,0.2056,2426.9,2426.5,0.7922]
[1750878749887,0.2056,2427.2,2426.8,4.12065271]
[1750878750096,0.2056,2427.2,2426.9,6.01746608]
[1750878750276,0.7989,2427.4,2427.1,4.12014338]
[1750878750581,1.0045,2427.4,2427.1,4.12014338]
[1750878750786,1.0045,2427.4,2427.0,4.32582117]
[1750878751098,1.0045,2427.4,2427.0,4.32588053]
[1750878751790,1.0045,2427.4,2427.0,4.32584091]
[1750878753294,5.12415283,2427.4,2427.0,0.2056]
[1750878753459,1.0045,2427.4,2427.0,0.2056]
[1750878753792,12.07714796,2427.4,2427.0,4.3258982]
[1750878753997,7.9575,2427.4,2427.0,4.3258982]
[1750878754359,4.11981782,2427.3,2427.0,0.2056]
[1750878756193,12.07723201,2427.4,2427.0,0.2056]
[1750878756561,4.11986135,2427.3,2427.0,0.2056]
[1750878757492,12.07722891,2427.4,2427.0,0.2056]
[1750878758061,4.11981038,2427.3,2427.0,0.2056]
[1750878758691,12.0772248,2427.4,2427.0,0.2056]
[1750878758889,12.0772248,2427.4,2427.0,4.32588927]
[1750878759070,12.0772248,2427.4,2427.0,0.2056]
[1750878759384,7.9575,2427.4,2427.0,0.2056]
[1750878759758,12.07726023,2427.4,2427.0,0.2056]
[1750878760372,4.11980996,2427.3,2427.0,0.2056]
[1750878760996,12.0772291,2427.4,2427.0,0.2056]
[1750878761293,6.934,2427.3,2427.0,4.32586082]
[1750878761485,0.2056,2427.4,2427.0,4.32586082]
[1750878761681,6.93,2427.3,2427.0,4.32586082]
[1750878762082,0.2056,2427.4,2427.1,4.12008345]
[1750878762386,7.1346,2427.4,2427.1,4.12008345]
[1750878763062,0.2056,2427.4,2427.1,4.12008345]
[1750878763262,7.1316,2427.4,2427.1,4.12008345]
[1750878763481,4.90484305,2427.6,2427.3,4.11980389]
[1750878763482,7.7085,2427.6,2427.3,4.11980389]
[1750878763696,0.7672,2427.8,2427.4,1.896]
[1750878763894,7.1296,2427.8,2427.5,4.11930415]
[1750878764087,7.1296,2427.8,2427.6,4.11925966]
[1750878764675,7.1296,2427.8,2427.4,6.01552061]
[1750878765197,7.1296,2427.8,2427.5,4.11944818]
[1750878765396,7.1296,2427.8,2427.5,4.11936559]
[1750878765605,7.1296,2427.8,2427.4,6.01554369]
[1750878766374,8.5672,2428.1,2427.5,0.8052]
[1750878766693,8.5672,2428.1,2427.7,4.11905211]
[1750878766694,14.9236,2428.1,2427.7,4.11905211]
[1750878766874,7.1236,2428.1,2427.7,4.11905211]
[1750878767081,0.7837,2428.4,2427.5,0.8052]
[1750878767082,0.7837,2428.4,2428.0,4.11850955]
[1750878767277,0.2056,2428.4,2428.1,4.1184069]
[1750878767601,0.2056,2428.4,2428.0,2.8241]
[1750878767789,0.7837,2428.7,2428.3,4.11810731]
[1750878767790,7.1226,2428.6,2428.3,4.11810731]
[1750878768106,0.2056,2428.6,2428.3,4.11810731]
[1750878768264,4.11676564,2429.1,2428.3,0.7605]
[1750878768479,11.52297542,2429.0,2428.7,0.2056]
[1750878769007,7.40604656,2429.0,2428.7,0.2056]
[1750878769213,11.52296811,2429.0,2428.7,0.2056]
[1750878769425,0.8316,2428.9,2428.0,0.765]
[1750878769628,0.2056,2428.5,2428.1,2.0636]
[1750878769927,0.2056,2428.5,2428.2,1.858]
[1750878770273,4.11801072,2428.4,2428.2,1.858]
[1750878770522,0.2056,2428.5,2428.2,1.858]
[1750878770994,4.32338386,2428.5,2428.2,1.858]
[1750878771189,0.2056,2428.5,2428.3,4.88302469]
[1750878771492,11.03837441,2428.8,2428.3,4.88302469]
[1750878772991,6.919,2428.8,2428.4,4.11787652]
[1750878773193,11.0362851,2428.8,2428.3,4.11802989]
[1750878773428,8.51749388,2428.8,2428.4,4.11780568]
[1750878773606,6.919,2428.8,2428.6,4.11750251]
[1750878773812,6.919,2428.8,2428.5,4.11773188]
[1750878774026,6.919,2428.8,2428.4,4.11785372]
[1750878774322,6.919,2428.8,2428.4,4.11793178]
[1750878774522,6.919,2428.8,2428.4,4.11778179]
[1750878775320,6.919,2428.8,2428.4,4.11783604]
[1750878775522,6.919,2428.8,2428.6,4.11759389]
[1750878775708,6.919,2428.8,2428.5,4.11771759]
[1750878776312,6.919,2428.8,2428.4,4.11790943]
[1750878777216,0.8316,2428.9,2428.6,4.11751388]
[1750878777409,6.916,2428.8,2428.6,4.11751388]
[1750878777588,6.916,2428.8,2428.5,4.11767934]
[1750878777991,6.916,2428.8,2428.6,4.11758071]
[1750878779627,0.8316,2428.9,2428.8,4.11725955]
[1750878779829,6.913,2429.1,2428.8,4.11725955]
[1750878780035,11.02976476,2429.1,2428.6,4.90442933]
[1750878780194,4.88087807,2429.2,2428.7,5.97434703]
[1750878780398,11.78887807,2429.2,2428.7,5.97434703]
[1750878781198,11.78887346,2429.2,2428.7,5.9744282]
[1750878781414,11.99447346,2429.2,2428.7,6.1800282]
[1750878782022,7.8778,2429.2,2428.8,4.11724124]
[1750878782603,0.9698,2429.2,2428.8,4.11724124]
[1750878782804,0.2056,2429.2,2428.8,1.20874397]
[1750878783005,4.115636,2429.8,2428.7,2.0626]
[1750878783006,5.30799494,2430.8,2430.1,0.7525]
[1750878783321,0.21498148,2431.2,2430.1,0.7525]
[1750878783322,0.7907,2431.7,2430.8,4.11387197]
[1750878783542,0.2056,2431.5,2430.9,0.4866372]
[1750878783703,0.2056,2431.5,2431.0,0.2056]
[1750878783901,7.4156,2431.5,2431.1,0.2056]
[1750878784224,7.4156,2431.5,2430.7,0.7525]
[1750878784225,0.2056,2431.1,2430.7,0.2056]
[1750878784533,0.2056,2431.1,2430.7,4.31963523]
[1750878784726,0.2056,2431.1,2430.8,0.34341887]
[1750878785405,0.2056,2431.1,2430.8,0.80972428]
[1750878785610,0.2056,2431.1,2430.9,4.11360745]
[1750878785909,0.2056,2431.1,2430.8,4.45723139]
[1750878786105,0.2056,2431.1,2430.8,0.34341887]
[1750878786411,7.204,2431.3,2430.8,4.45724899]
[1750878786604,4.11287425,2431.4,2430.8,4.45724899]
[1750878786835,11.31803116,2431.3,2430.8,0.34341887]
[1750878787147,4.11319512,2431.2,2430.8,0.34341887]
[1750878787375,0.55318879,2432.1,2430.9,0.8073]
[1750878787657,0.55318879,2432.1,2431.2,4.11307492]
[1750878787658,4.11201118,2431.9,2431.2,4.11307492]
[1750878787858,7.27,2431.8,2431.2,4.11307492]
[1750878788066,7.27,2431.8,2430.9,10.8073]
[1750878788268,7.27,2431.9,2431.4,4.11275616]
[1750878788730,11.38211604,2431.9,2431.3,4.11298853]
[1750878788930,0.2203504,2432.0,2431.4,4.92629342]
[1750878789264,4.33229694,2432.0,2431.4,1.15693413]
[1750878789439,0.2203504,2432.0,2431.4,11.15693413]
[1750878789641,0.2203504,2432.0,2431.9,4.11201118]
[1750878792541,0.2203504,2432.0,2431.9,0.34326354]
[1750878793149,0.2203504,2432.0,2431.9,5.25477472]
[1750878793351,0.2203504,2432.0,2431.9,1.14276354]
[1750878793550,0.2203504,2432.0,2431.9,5.25477472]
[1750878793951,0.2203504,2432.0,2431.9,1.14276354]
[1750878794152,4.3321925,2432.0,2431.9,0.34326354]
[1750878794365,10.7923,2431.9,2431.0,0.7995]
[1750878794655,4.11295403,2431.4,2431.0,0.7995]
[1750878794839,4.11271192,2431.5,2431.0,0.7995]
[1750878795046,0.7923,2431.9,2431.0,0.7995]
[1750878795379,4.11230033,2431.8,2431.2,4.11310903]
[1750878795546,0.41123003,2431.7,2431.2,4.11310903]
[1750878795747,0.41123003,2431.7,2431.3,4.11300108]
[1750878796285,0.2056,2431.7,2431.3,4.11302595]
[1750878796484,4.31774118,2431.9,2431.4,0.2056]
[1750878796838,0.2056,2431.9,2431.5,4.8776587]
[1750878797167,0.85836965,2432.0,2431.7,4.11228298]
[1750878797882,0.85836965,2432.0,2431.6,0.2056]
[1750878797883,4.97032562,2432.0,2431.6,0.2056]
[1750878798070,1.08583696,2431.9,2431.6,0.2056]
[1750878798877,5.19792908,2431.9,2431.6,0.2056]
[1750878799985,4.11221304,2431.8,2431.6,0.2056]
[1750878800285,5.19792484,2431.9,2431.6,0.2056]
[1750878800483,1.01681467,2431.8,2431.6,0.2056]
[1750878800685,4.97032744,2432.0,2431.6,0.2056]
[1750878800887,4.11204435,2431.9,2431.6,0.2056]
[1750878801552,4.97027789,2432.0,2431.6,0.2056]
[1750878801882,4.11204281,2431.9,2431.6,0.2056]
[1750878802277,4.97027563,2432.0,2431.6,0.2056]
[1750878802492,5.02021811,2431.9,2431.6,0.2056]
[1750878802672,0.90820095,2431.9,2431.6,0.2056]
[1750878803591,5.02023413,2431.9,2431.6,0.2056]
[1750878803771,0.90820095,2431.9,2431.6,4.31810826]
[1750878803972,0.65356965,2432.0,2431.6,4.11250826]
[1750878804297,0.65356965,2432.0,2431.5,0.765]
[1750878804603,0.65356965,2432.0,2431.6,4.11239695]
[1750878804811,0.65356965,2432.0,2431.7,4.11234305]
[1750878805171,0.65356965,2432.0,2431.7,4.11226224]
[1750878805574,0.65356965,2432.0,2431.6,4.11242536]
[1750878805788,0.65356965,2432.0,2431.5,4.87765664]
[1750878805789,4.76543514,2432.0,2431.5,4.87760828]
[1750878805998,4.5885625,2431.9,2431.4,4.11270197]
[1750878806401,0.47652523,2431.9,2431.2,0.8047]
[1750878806575,4.11201118,2431.9,2431.4,4.11284021]
[1750878806771,4.11201118,2431.9,2431.2,12.1828382]
[1750878806772,5.10136721,2432.0,2431.5,4.11268243]
[1750878806977,4.11202142,2431.9,2431.4,4.11280769]
[1750878807172,0.9894504,2432.0,2431.3,4.11300767]
[1750878807173,4.1122027,2431.8,2431.3,4.1129384]
[1750878807405,0.41122027,2431.7,2431.3,4.11293288]
[1750878807589,0.41122027,2431.7,2431.3,4.11302595]
[1750878807891,0.41122027,2431.7,2431.4,4.11282471]
[1750878808075,0.41122027,2431.7,2431.3,4.11296577]
[1750878808618,0.8199,2431.5,2430.9,0.8222]
[1750878808903,4.11285679,2431.4,2430.9,4.93579301]
[1750878809095,0.49327568,2431.3,2430.9,4.93579301]
[1750878809294,0.49327568,2431.3,2431.0,4.11349839]
[1750878809681,0.49327568,2431.3,2430.9,4.11362026]
[1750878809905,0.7684,2431.1,2430.3,4.89067829]
[1750878810090,4.88187106,2431.1,2430.3,4.89076048]
[1750878810294,4.88187106,2431.1,2430.4,4.11442924]
[1750878810503,4.11357794,2431.0,2430.4,4.11442924]
[1750878810708,4.11353352,2431.0,2430.3,4.89077251]
[1750878810874,4.11353352,2431.0,2430.0,4.89127139]
[1750878810875,0.48819335,2430.9,2430.0,4.89127139]
[1750878811075,0.48819335,2430.9,2429.7,0.7761]
[1750878811076,0.7684,2430.6,2429.7,0.7761]
[1750878811276,4.11478534,2430.3,2429.7,4.89171719]
[1750878811678,4.11489481,2430.2,2429.7,4.89171719]
[1750878812439,4.11437975,2430.5,2429.8,4.11554743]
[1750878812811,4.11454904,2430.4,2429.8,4.11554743]
[1750878813002,5.01428192,2430.4,2429.7,4.89175723]
[1750878813205,2.098,2430.4,2429.7,0.7761]
[1750878813514,2.098,2430.4,2430.0,4.11510328]
[1750878813876,4.11321763,2431.2,2430.8,0.7687]
[1750878814124,4.11260867,2431.6,2430.9,4.11360327]
[1750878814292,0.7708,2431.7,2430.8,0.7687]
[1750878814502,7.8,2431.9,2430.9,4.11370274]
[1750878814812,0.87911504,2431.8,2431.5,4.11264225]
[1750878814982,0.87911504,2431.8,2431.0,4.11350348]
[1750878815182,0.87911504,2431.8,2431.5,4.11267637]
[1750878815381,0.87911504,2431.8,2430.9,1.83954055]
[1750878815617,0.87911504,2431.8,2431.1,4.11333738]
[1750878815912,0.9911504,2432.0,2431.1,10.0]
[1750878816086,0.9911504,2432.0,2431.6,4.11236149]
[1750878816291,0.9911504,2432.0,2431.7,4.11232303]
[1750878817084,0.9911504,2432.0,2431.6,4.11246598]
[1750878817483,1.91259904,2432.0,2431.5,4.11268611]
[1750878817788,0.9911504,2432.0,2431.0,4.11353352]
[1750878817994,4.11262988,2431.6,2431.0,4.11337072]
[1750878818291,0.8189,2431.4,2431.0,4.11337072]
[1750878818614,1.31206027,2431.4,2431.0,4.11337072]
[1750878818779,0.8189,2431.4,2431.0,4.11337072]
[1750878818984,0.8189,2431.4,2430.8,0.7687]
[1750878819183,0.8189,2431.4,2431.1,4.11327525]
[1750878819928,0.8189,2431.4,2431.0,4.11349924]
[1750878822741,0.8189,2431.4,2430.5,0.7928]
[1750878823045,4.11311257,2431.3,2430.8,4.11380263]
[1750878824023,0.2056,2431.1,2430.7,0.2056]
[1750878824224,0.2056,2431.0,2430.6,4.11411701]
[1750878824426,0.2056,2431.0,2430.5,5.11265436]
[1750878824630,0.7706,2430.9,2430.5,0.2056]
[1750878824965,4.88526113,2430.4,2430.2,0.1027521]
[1750878825138,4.11471834,2430.3,2430.2,0.1027521]
[1750878825628,4.11471834,2430.3,2429.8,4.11551409]
[1750878825802,0.2056,2430.0,2429.8,4.11551409]
[1750878827223,0.2056,2430.0,2429.9,4.11539569]
[1750878827428,0.2056,2430.0,2429.8,4.11547091]
[1750878827596,0.2056,2430.0,2429.7,4.11564407]
[1750878827794,0.2056,2430.0,2429.6,4.32143696]
[1750878827999,0.2056,2430.0,2429.7,4.11573445]
[1750878828331,0.2056,2430.0,2429.9,4.11539569]
[1750878829531,0.2056,2430.0,2429.9,4.93849058]
[1750878829733,0.2056,2430.5,2429.9,5.97302179]
[1750878829904,0.2056,2430.5,2430.1,4.11500971]
[1750878831120,4.31999836,2430.5,2430.0,4.11510798]
[1750878831426,0.2056,2430.5,2430.1,4.1150249]
[1750878832202,4.3200371,2430.5,2430.0,4.11518987]
[1750878832906,0.2056,2430.5,2430.1,4.1149486]
[1750878833540,4.11464108,2430.4,2429.9,5.97302787]
[1750878833836,0.2056,2430.3,2429.9,5.97302787]
[1750878834140,0.2056,2430.3,2430.0,4.11520466]
[1750878834709,0.2056,2430.3,2430.1,4.11502981]
[1750878835519,0.2056,2430.3,2430.1,4.11489042]
[1750878835721,0.2056,2430.3,2430.1,4.11505699]
[1750878836122,4.11421048,2430.6,2429.9,4.93840624]
[1750878836344,0.2056,2430.1,2429.9,4.11531135]
[1750878837809,0.2056,2430.1,2429.8,4.11547564]
[1750878839431,0.2056,2430.1,2429.7,0.2056]
[1750878839636,0.2056,2430.1,2429.9,4.11536707]
[1750878839815,0.2056,2430.1,2430.0,4.11522633]
[1750878840150,0.2056,2430.5,2430.3,4.11469053]
[1750878840359,9.866,2430.9,2430.1,0.7921]
[1750878840560,0.2056,2430.7,2430.3,0.2056]
[1750878840761,0.2056,2430.7,2430.6,4.11421048]
[1750878840918,0.2056,2430.9,2430.7,4.11395883]
[1750878841343,0.2056,2430.9,2430.8,4.11387197]
[1750878841769,0.2056,2430.9,2430.7,4.11396336]
[1750878842316,0.2056,2430.9,2430.6,4.11421048]
[1750878843022,0.2056,2430.9,2430.5,4.31988694]
[1750878843427,0.2056,2430.9,2430.6,4.11410476]
[1750878843780,0.2056,2430.9,2430.6,4.11410028]
[1750878843996,2.8663,2431.3,2430.8,4.11387197]
[1750878844183,0.2056,2431.2,2430.8,4.11387197]
[1750878844390,0.2056,2431.2,2430.9,4.11370274]
[1750878845894,0.2056,2431.2,2430.8,4.11382931]
[1750878847254,0.2056,2431.2,2430.9,4.11369207]
[1750878847556,0.2056,2431.2,2430.9,0.51505921]
[1750878847781,0.2056,2431.2,2430.7,1.0369]
[1750878847970,0.2056,2431.2,2430.9,4.11369717]
[1750878848284,0.2056,2431.2,2430.7,1.0369]
[1750878848451,0.2056,2431.2,2431.0,4.11352332]
[1750878848854,0.2056,2431.2,2431.1,4.11336432]
[1750878849083,0.7783,2431.6,2431.1,5.14165308]
[1750878849271,0.7783,2431.6,2431.3,4.11300375]
[1750878849660,0.7783,2431.6,2431.2,4.11315061]
[1750878849661,0.7783,2431.6,2431.2,4.11310009]
[1750878849860,4.8908219,2431.6,2431.1,4.31890459]
[1750878850061,4.11268764,2431.5,2430.9,4.11363272]
[1750878850288,4.11303799,2431.3,2430.9,0.2056]
[1750878850796,0.2056,2431.4,2431.0,4.11351268]
[1750878851204,4.3186191,2431.4,2430.9,0.2056]
[1750878851486,4.11312119,2431.3,2430.9,0.2056]
[1750878851799,4.11312119,2431.3,2430.9,4.31927993]
[1750878852103,4.11312119,2431.3,2430.9,0.2056]
[1750878852283,4.11312119,2431.3,2430.8,4.11380895]
[1750878852595,0.2056,2431.2,2430.7,5.15091194]
[1750878852898,4.31888821,2431.2,2430.7,4.31962397]
[1750878853083,0.2056,2431.2,2430.7,0.2056]
[1750878853389,0.2056,2431.0,2430.6,4.75177623]
[1750878853590,0.2056,2431.0,2430.7,4.11402356]
[1750878854069,0.2056,2431.0,2430.6,4.75170583]
[1750878854468,0.2056,2431.0,2430.7,4.11402993]
[1750878855471,0.2056,2431.0,2430.6,4.75168739]
[1750878856160,4.3191377,2431.0,2430.6,0.2056]
[1750878857785,4.3191377,2431.0,2430.6,4.31980269]
[1750878857991,0.2056,2431.0,2430.6,4.31980269]
[1750878859907,4.11418286,2430.7,2430.0,4.93817392]
[1750878860114,0.2056,2430.6,2430.1,0.2056]
[1750878860274,4.11474737,2430.3,2430.0,0.2056]
[1750878860626,0.2056,2430.2,2429.7,0.2056]
[1750878860778,4.32056548,2430.2,2429.7,4.3213336]
[1750878860968,4.32056548,2430.2,2429.7,5.24321272]
[1750878861169,0.2056,2430.2,2429.7,5.24321272]
[1750878861486,0.2056,2430.2,2429.8,4.11553013]
[1750878861862,0.2056,2430.2,2429.9,4.11537819]
[1750878862579,0.2056,2430.2,2429.8,4.11550879]
[1750878862713,0.2056,2430.2,2429.7,5.24314647]
[1750878862914,0.2056,2430.2,2429.8,4.11549821]
[1750878863117,2.7883,2430.1,2429.4,0.2055042]
[1750878863329,4.1158196,2429.7,2429.4,0.2055042]